[Event "Silves Open 2025"]
[Site "Fissul"]
[Date "2025.03.03"]
[Round "2.10"]
[White "Santos, Joao Artur Almeida"]
[Black "Degardin, Sylvain"]
[Result "0-1"]
[Annotator "TA"]
[ECO "C95"]
[WhiteElo "1950"]
[BlackElo "2309"]
[PlyCount "111"]
[EventDate "2025.03.03"]
[EventType "swiss"]
[EventCountry "POR"]
[SourceTitle "playchess.com"]
[Source "ChessBase"]
[SourceQuality "1"]
[TimeControl "5400+30"]

{[%evp 31,111,3,7,8,9,0,0,0,46,-17,0,0,0,0,0,0,4,17,79,0,0,0,104,60,97,0,0,4,17,-71,-28,-59,0,-161,107,-96,76,0,20,21,12,-177,-181,-175,0,-24,-30,-28,0,0,0,0,0,0,0,0,0,0,0,0,0,2,4,0,0,-1,0,0,8,8,13,8,14,18,61,-8,-8,-2857,-1520,-29970,-4727,-29991]} 1. e4 {[%emt 0:00:03]} e5 {[%emt 0:02:03]} 2. Nf3 {[%emt 0:00:08]} Nc6 {[%emt 0:00:13]} 3. Bb5 {[%emt 0:00:10]} a6 {[%emt 0:00:30]} 4. Ba4 {[%emt 0:00:05]} Nf6 {[%emt 0:00:29]} 5. O-O {[%emt 0:00:14]} Be7 {[%emt 0:00:22]} 6. Re1 {[%emt 0:00:07]} b5 {[%emt 0:00:19]} 7. Bb3 {[%emt 0:00:04]} d6 {[%emt 0:00:10]} 8. c3 {[%emt 0:00:05]} O-O {[%emt 0:00:30]} 9. h3 {[%emt 0:00:04]} Nb8 {[%emt 0:00:41]} 10. d4 {[%emt 0:00:18]} Nbd7 {[%emt 0:00:23]} 11. Nbd2 {[%emt 0:02:15]} Bb7 {[%emt 0:00:11]} 12. a4 {[%emt 0:02:01]} c5 {[%emt 0:03:49]} 13. Bc2 {[%emt 0:03:40]} Qc7 {[%emt 0:09:23]} 14. d5 {[%emt 0:05:39]} c4 {[%emt 0:03:41]} 15. Nf1 {[%emt 0:00:17]} Nc5 {[%emt 0:02:06]} 16. Ng3 {[%emt 0:02:05]} g6 {[%emt 0:01:58]} 17. Bh6 {[%emt 0:02:35] C95: Closed Ruy Lopez: Breyer Variation with 10 d4.} Rfb8 {[%emt 0:06:02]} 18. Qd2 {[%emt 0:04:03][%cal Og3f5]} Bc8 {[%emt 0:04:24]} 19. a5 {[%emt 0:12:37] The position is equal.} Nb7 $146 {[%emt 0:03:58] [#]} (19... Bd7 $11) ({Predecessor:} 19... Qd8 20. Nf5 Bf8 21. Bxf8 Qxf8 22. Qg5 Bxf5 23. Qxf6 Bd7 24. Nd2 Re8 25. f4 Qe7 26. fxe5 dxe5 {½-½ Negi,P (2641)-Korobov,A (2702) New Delhi AICF AAI Cup 2012 (5)}) 20. Nf5 {[%emt 0:02:38] Strong Square White (h6). White attacks} Bxf5 {[%emt 0:03:27]} (20... Bd8 21. Ng3 Nxa5 22. Ng5 Ne8) 21. exf5 {[%emt 0:00:08]} Nxa5 {[%emt 0:04:20]} 22. fxg6 {[%emt 0:16:31]} hxg6 {[%emt 0:00:38]} 23. Qg5 {[%emt 0:19:34][%cal Oc2g6]} Nh7 {[%emt 0:17:30]} 24. Qg3 {[%emt 0:03:33]} Kh8 {[%emt 0:01:49]} (24... Bf8 $1 $11 25. Bxg6 Bxh6 26. Bc2+ Bg7 (26... Kh8 $2 27. Qh4 $18)) 25. Ng5 {[%emt 0:15:00]} (25. h4 $16) 25... Bxg5 $11 {[%emt 0:08:08]} 26. Bxg5 $40 {[%emt 0:00:09][%mdl 128] White attacks.} f5 {[%emt 0:05:20]} (26... Nb3 $11 {remains equal.} 27. Bxb3 cxb3) 27. Qh4 {[%emt 0:04:48][%cal Oa1a5][%mdl 1024] White has strong compensation.} Nb3 {[%emt 0:03:30]} 28. Rad1 {[%emt 0:00:34]} (28. Bxb3 $16 cxb3 29. f4) 28... Qf7 {[%emt 0:01:21]} 29. Be7 {[%emt 0:01:19]} Rb6 {[%emt 0:02:43]} 30. Re3 {[%emt 0:00:56]} (30. f4 $11 e4 31. Bxb3 cxb3 32. g4) 30... Re8 {[%emt 0:02:28]} (30... Kg7 {looks sharper.} 31. Rg3 Nc5 32. Bd8 Rb7) 31. Bg5 {[%emt 0:00:14]} Nc5 {[%emt 0:00:46]} (31... Rb7 $1 $15) 32. g4 $2 {[%emt 0:02:04]} (32. Rg3 $11 {and White is okay.}) 32... e4 $2 {[%emt 0:02:11]} (32... f4 $19 33. Bxf4 exf4 34. Rxe8+ Qxe8 35. Bxg6 Qxg6 36. Qd8+ Kg7 37. Qxb6 Ng5 38. Qc7+ Nf7) 33. f3 $2 {[%emt 0:01:05]} (33. gxf5 $16 {is forced if you want to stay better.} Qxf5 34. Rg3) 33... Rb7 $2 {[%emt 0:06:29]} (33... f4 $17 {and life is bright.} 34. Rxe4 Nxe4 35. Bxe4 Kg8) 34. fxe4 {[%emt 0:01:10]} (34. Rf1 $1 $16 {Hoping for fxe4.} Qxd5 35. Bf6+ Kg8 36. Bd4) 34... Nxe4 {[%emt 0:00:42]} 35. Bxe4 {[%emt 0:00:43]} fxe4 {[%emt 0:00:48]} 36. Rd4 $2 {[%emt 0:00:28]} (36. Ree1 $11 Kg8 37. Rf1) 36... Re5 $1 $19 {[%emt 0:00:45][%csl LRd5,LRg5]} 37. Bd8 {[%emt 0:00:55] [#]} Qf4 {[%emt 0:00:53]} (37... Rxd5 38. Rdxe4 Rd1+ 39. Re1 $16) (37... g5 $1 $19 {[%cal Rg5h4]} 38. Qf2 Qg6 (38... Rxd5 $2 39. Qxf7 Rxf7 40. Rxd5 $18)) 38. Qf2 {[%emt 0:00:04]} Qxf2+ {[%emt 0:02:02]} 39. Kxf2 {[%emt 0:00:04]} Rd7 {[%emt 0:01:53]} 40. Bh4 {[%emt 0:00:08]} Kg8 {[%emt 0:00:55]} 41. Bg3 {[%emt 0:00:33]} Re8 {[%emt 0:00:30]} (41... Rf7+ $6 42. Ke2 Re8 43. Rdxe4 (43. Rexe4 Rfe7 $14) 43... Rxe4 44. Rxe4 $16) 42. Rdxe4 {[%emt 0:00:50]} Rxe4 {[%emt 0:00:12]} 43. Rxe4 $11 {[%emt 0:00:03][%mdl 4096] Endgame KRB-KRN} Nf6 {[%emt 0:00:43][%csl LRd5,LRe4] Wards off Re8+} 44. Rd4 {[%emt 0:00:40]} g5 {[%emt 0:00:30]} 45. h4 {[%emt 0:00:31]} gxh4 {[%emt 0:00:40]} 46. Bxh4 {[%emt 0:00:04]} Kg7 {[%emt 0:00:07]} 47. Bxf6+ {[%emt 0:01:00]} Kxf6 {[%emt 0:00:02] KR-KR} 48. Re4 {[%emt 0:00:09]} Kg5 {[%emt 0:00:39]} 49. Kg3 {[%emt 0:00:18]} Rb7 {[%emt 0:00:46]} 50. Re8 {[%emt 0:00:53]} a5 {[%emt 0:00:46]} 51. Rg8+ {[%emt 0:00:12]} Kf6 {[%emt 0:00:06]} 52. Kf4 {[%emt 0:00:08]} b4 {[%emt 0:00:46]} 53. Rc8 {[%emt 0:00:13]} ({White should play} 53. Ra8 $14) 53... a4 {[%emt 0:00:33] Threatens to win with ...a3.} 54. Rxc4 $2 {[%emt 0:00:44][%mdl 8192] [#]} (54. g5+ $11 Kg6 55. cxb4 (55. Rxc4 $2 {loses.} a3 $19)) 54... a3 $1 $19 {[%emt 0:00:07]} 55. Ke3 {[%emt 0:01:09]} axb2 {[%emt 0:00:28] ( -> ...Re7+)} 56. Kd4 {[%emt 0:01:13] Weighted Error Value: White=0.70/Black=0.37  Loses game:     	White=3     	---        Missed win:     	---       	Black=2      Mistake:       	White=7     	Black=5      Inaccurate:     	White=2     	Black=4      OK:         	White=15    	Black=13     Best:        	---       	Black=2      Strong:       	---       	Black=1} 0-1

[Event "Silves Open 2025"]
[Site "Fissul"]
[Date "2025.03.03"]
[Round "2.11"]
[White "Goncalves, Samuel Jesus P"]
[Black "Dumont, Andre"]
[Result "1-0"]
[Annotator "TA"]
[ECO "E17"]
[WhiteElo "2280"]
[BlackElo "1891"]
[PlyCount "55"]
[EventDate "2025.03.03"]
[EventType "swiss"]
[EventCountry "POR"]
[SourceTitle "playchess.com"]
[Source "ChessBase"]
[SourceQuality "1"]
[TimeControl "5400+30"]

{[%evp 20,55,33,18,28,14,27,13,56,37,52,52,60,52,56,53,116,111,166,147,318,318,335,312,322,276,293,296,553,150,1903,878,1511,1643,1852,1107,1825,1847]} 1. Nf3 {[%emt 0:00:41]} Nf6 {[%emt 0:00:13]} 2. g3 {[%emt 0:00:23]} e6 {[%emt 0:00:59]} 3. Bg2 {[%emt 0:00:11]} Be7 {[%emt 0:01:14]} 4. O-O {[%emt 0:00:13]} c5 {[%emt 0:01:23]} 5. c4 {[%emt 0:01:26]} O-O {[%emt 0:02:14]} 6. b3 {[%emt 0:01:36]} d5 {[%emt 0:01:01]} 7. cxd5 {[%emt 0:00:10]} exd5 {[%emt 0:00:22]} 8. d4 {[%emt 0:00:10]} b6 {[%emt 0:08:07]} 9. Nc3 {[%emt 0:03:37]} Bb7 {[%emt 0:01:34]} 10. Bb2 {[%emt 0:03:23]} Na6 {[%emt 0:02:20][%cal Bb8a6,Ba6c5,Bc5e6,Be6d4][%mdl 32]} 11. Rc1 {[%emt 0:00:46]} Ne4 {[%emt 0:08:11] E17: Queen's Indian: 4 g3 Bb7 5 Bg2 Be7.} 12. dxc5 {[%emt 0:41:16]} Naxc5 {[%emt 0:14:54]} 13. Nb5 {[%emt 0:00:41]} Ne6 $146 {[%emt 0:08:12] The position is equal.} (13... a6 14. Nbd4 Bf6 15. b4 Ne6 16. Nxe6 fxe6 17. Bxf6 Qxf6 18. Qd4 Qxd4 19. Nxd4 e5 20. Bxe4 dxe4 {1-0 Burmakin,V (2526)-Schitco,I (2334) Staufer op-A 30th 2018 (7)}) 14. Nfd4 {[%emt 0:01:44]} Nxd4 {[%emt 0:03:33]} 15. Bxd4 {[%emt 0:02:51]} (15. Qxd4 $2 Bf6 16. Qe3 Bxb2 $19) 15... Bf6 {[%emt 0:17:27]} 16. Bxf6 {[%emt 0:07:08]} Qxf6 {[%emt 0:08:08]} 17. Qd4 {[%emt 0:00:25]} Qf5 {[%emt 0:09:09]} (17... Qxd4 $14 18. Nxd4 Rfc8) 18. Rfd1 {[%emt 0:06:35] White has strong rooks and is better White is more active.} Rfd8 {[%emt 0:01:50]} (18... h6 $16 19. Bxe4 Qxe4) 19. Rc7 {[%emt 0:17:24]} Ba6 {[%emt 0:01:05]} (19... Nc5 $16) 20. Nxa7 $18 {[%emt 0:00:27]} Bxe2 {[%emt 0:01:02] [#]} 21. Nc6 $1 {[%emt 0:01:33] And now Ne7+ would win.} Re8 {[%emt 0:05:20]} 22. Re1 {[%emt 0:01:08]} (22. Qxd5 $2 Qxf2+ 23. Kh1 Bxd1 24. Qxd1 Nc3 (24... Rxa2 $2 25. Qf1 $19) 25. Ne7+ Rxe7 26. Bxa8 g6 (26... Nxd1 27. Rc8+) (26... Re1+ $2 27. Qxe1 Qxe1+ 28. Kg2 $19) 27. Rxe7 Nxd1 $19) 22... Qh5 {[%emt 0:01:11]} 23. Ne7+ {[%emt 0:01:22]} (23. Qxb6 $6 h6 24. Re7 Bf3 25. Rxe8+ Rxe8 $18) 23... Kf8 $2 {[%emt 0:01:11]} (23... Kh8 {was worth a try.} 24. Nxd5 (24. Qxb6 Bf3 $16) 24... Bf3) 24. Qxd5 $2 {[%emt 0:01:40]} (24. Nxd5 $18 {has better winning chances.} Ng5 25. Qb4+ (25. Nxb6 Rad8 $18) (25. Qxb6 h6 $18) 25... Kg8 26. Re7 (26. Nxb6 Qg4 $18) (26. Qxb6 Nf3+ 27. Bxf3 Qxf3 $18)) 24... Rxe7 $2 {[%emt 0:01:10] [#] A mistake that costs the game.} (24... Qxd5 $16 25. Nxd5 Ng5) 25. Qxa8+ {[%emt 0:00:09] White is clearly winning.} Re8 {[%emt 0:00:10]} 26. Rc8 {[%emt 0:00:15]} Nd6 {[%emt 0:00:51]} 27. Rxe8+ {[%emt 0:00:19]} Nxe8 {[%emt 0:00:02]} 28. Bc6 {[%emt 0:00:32] Weighted Error Value: White=0.32/Black=1.01  Loses game:     	---       	Black=2      Missed win:     	White=1     	---        Mistake:       	---       	Black=3      Inaccurate:     	---       	Black=2      OK:         	White=2     	Black=2      Best:        	White=2     	---} 1-0

[Event "Silves Open 2025"]
[Site "Fissul"]
[Date "2025.03.03"]
[Round "2.12"]
[White "Avelino, Camila Biscaya"]
[Black "Malassagne, Raphael"]
[Result "1/2-1/2"]
[Annotator "TA"]
[ECO "B13"]
[WhiteElo "1906"]
[BlackElo "2267"]
[PlyCount "132"]
[EventDate "2025.03.03"]
[EventType "swiss"]
[EventCountry "POR"]
[SourceTitle "playchess.com"]
[Source "ChessBase"]
[SourceQuality "1"]
[TimeControl "5400+30"]

{[%evp 13,132,31,39,11,7,13,10,0,8,2,11,0,35,10,19,0,0,4,0,0,-8,-11,0,-3,0,0,-2,-43,-33,-31,-31,-32,-18,-22,-13,-19,-20,-22,-22,-18,-13,-27,-27,-27,-27,-27,-27,-27,-27,-27,-27,-27,-27,-27,-27,-27,-27,-27,0,-27,-27,-27,-27,-27,0,0,0,0,0,0,0,0,0,0,0,-70,-26,-65,0,0,0,0,0,0,0,0,0,0,0,0,0,0,0,0,0,0,0,0,0,0,0,0,0,0,0,0,0,0,0,0,0,0,0,0,0,0,0,0,0,0,0]} 1. e4 {[%emt 0:04:07]} c6 {[%emt 0:00:11]} 2. d4 {[%emt 0:00:05]} d5 {[%emt 0:00:05]} 3. exd5 {[%emt 0:00:05]} cxd5 {[%emt 0:00:06]} 4. Bd3 {[%emt 0:00:10]} Nc6 {[%emt 0:00:37]} 5. c3 {[%emt 0:00:07]} Nf6 {[%emt 0:00:18]} 6. Bf4 {[%emt 0:00:34]} g6 {[%emt 0:00:17]} 7. Nf3 {[%emt 0:01:33]} Bf5 {[%emt 0:00:17]} 8. O-O {[%emt 0:05:25] B13: Caro-Kann: Exchange Variation and Panov-Botvinnik Attack.} Bxd3 {[%emt 0:00:54] 8...e6 deserves study.} 9. Qxd3 {[%emt 0:00:08]} e6 {[%emt 0:00:03]} 10. Nbd2 {[%emt 0:02:02]} Nh5 $146 {[%emt 0:02:56]} (10... Bd6 11. Bh6 Ng4 12. Bg7 Rg8 13. Be5 Ngxe5 14. Nxe5 Nxe5 15. dxe5 Bxe5 16. Rfe1 Bf6 {0-1 Martin Carmona,G (2326)-Tabatabaei,M (2639) Titled Tuesday intern op 30th Nov blitz 2021 (1)}) 11. Be5 {[%emt 0:11:26]} f6 {[%emt 0:07:59]} 12. Bg3 {[%emt 0:00:10]} Nxg3 {[%emt 0:14:10]} 13. hxg3 {[%emt 0:30:17]} Qd6 {[%emt 0:09:49]} (13... Kf7 {is interesting.} 14. Rae1 Bh6 15. g4 Re8) 14. c4 {[%emt 0:07:05]} Bg7 {[%emt 0:07:28]} 15. Rfe1 {[%emt 0:09:58][%cal Ob2b4]} O-O {[%emt 0:01:48]} 16. Rac1 {[%emt 0:08:00][%cal Ob2b4]} Rad8 {[%emt 0:03:12]} 17. Nb3 {[%emt 0:03:36]} Bh6 {[%emt 0:26:08]} 18. Rcd1 {[%emt 0:08:40]} Rf7 {[%emt 0:06:23]} 19. cxd5 {[%emt 0:01:20]} Qxd5 {[%emt 0:03:24]} 20. Qe4 {[%emt 0:02:23]} Qxe4 {[%emt 0:00:36]} 21. Rxe4 {[%emt 0:00:04] [#]} e5 $1 {[%emt 0:00:15]} 22. Rde1 {[%emt 0:01:00][%cal Rd4e5]} f5 {[%emt 0:04:57]} (22... Nxd4 {simplifies} 23. Nbxd4 exd4 24. Rxd4 Rxd4 25. Nxd4 Rd7) 23. Rh4 {[%emt 0:00:12]} e4 {[%emt 0:00:02]} 24. Rxh6 {[%emt 0:01:23]} exf3 {[%emt 0:00:05]} 25. gxf3 {[%emt 0:01:54]} Nxd4 {[%emt 0:02:26]} 26. Nxd4 {[%emt 0:00:36]} Rxd4 {[%emt 0:00:02]} 27. Rh4 {[%emt 0:00:40]} Rxh4 {[%emt 0:00:25]} 28. gxh4 $11 {[%emt 0:00:03][%mdl 4096] Endgame KR-KR} Kg7 {[%emt 0:00:33]} 29. Kg2 {[%emt 0:00:21]} Kh6 {[%emt 0:00:15]} 30. Kg3 {[%emt 0:01:14]} Kh5 {[%emt 0:00:06]} 31. f4 {[%emt 0:00:48]} Rd7 {[%emt 0:00:15]} 32. Re2 {[%emt 0:00:14]} h6 {[%emt 0:05:24]} 33. f3 {[%emt 0:00:35]} b6 {[%emt 0:00:15]} 34. b3 {[%emt 0:00:26]} Rd6 {[%emt 0:00:18]} 35. Re7 {[%emt 0:00:42]} a5 {[%emt 0:01:07]} 36. Rb7 {[%emt 0:00:26]} Rd2 {[%emt 0:01:48]} 37. a3 {[%emt 0:00:33]} Rd6 {[%emt 0:00:25]} 38. Rb8 {[%emt 0:00:17]} Rc6 {[%emt 0:00:11]} 39. Rb7 {[%emt 0:00:12]} g5 {[%emt 0:00:59]} 40. fxg5 {[%emt 0:00:26]} hxg5 {[%emt 0:00:05]} 41. hxg5 {[%emt 0:00:25]} Kxg5 {[%emt 0:00:02]} 42. Rg7+ {[%emt 0:00:40]} Kf6 {[%emt 0:00:17]} 43. Rd7 {[%emt 0:00:05]} Ke5 {[%emt 0:00:52]} 44. Rd3 {[%emt 0:00:26]} (44. Re7+ $11 Kf6 45. Rb7) 44... f4+ {[%emt 0:00:06]} 45. Kh4 {[%emt 0:01:30]} Rg6 {[%emt 0:00:42]} (45... b5 $1 $15) 46. a4 {[%emt 0:00:30] The position is equal.} Rg3 {[%emt 0:00:58]} 47. Kh5 {[%emt 0:00:16]} Rg1 {[%emt 0:01:07]} 48. Kh4 $1 {[%emt 0:00:44]} Re1 {[%emt 0:00:35] [#] ...Re3 is the strong threat.} 49. Kg4 {[%emt 0:00:29]} Re3 {[%emt 0:00:14]} 50. Rd8 {[%emt 0:00:13]} Rxb3 {[%emt 0:00:10]} 51. Re8+ {[%emt 0:00:13]} Kd4 {[%emt 0:01:39]} 52. Kxf4 {[%emt 0:00:18]} Rb4 {[%emt 0:00:05][%cal Od4c4]} 53. Re4+ {[%emt 0:01:00]} Kc3 {[%emt 0:02:51]} 54. Ke5 {[%emt 0:00:51]} b5 {[%emt 0:00:34]} ({Wrong is} 54... Kb3 $2 55. f4 $18) 55. axb5 {[%emt 0:00:21]} Rxb5+ {[%emt 0:00:29]} 56. Kd6 {[%emt 0:00:24]} Kb3 {[%emt 0:00:24]} 57. Kc6 {[%emt 0:00:30]} Rf5 {[%emt 0:00:22]} 58. Re3+ {[%emt 0:00:31]} Kc4 {[%emt 0:00:04]} 59. Re4+ {[%emt 0:00:13]} Kc3 {[%emt 0:00:09]} 60. Re3+ {[%emt 0:00:18]} Kd4 {[%emt 0:00:17]} 61. Re4+ {[%emt 0:00:31]} Kd3 {[%emt 0:00:46]} 62. Ra4 {[%emt 0:00:13]} Rxf3 {[%emt 0:00:05]} 63. Ra3+ {[%emt 0:00:17]} Ke2 {[%emt 0:00:02]} 64. Rxf3 {[%emt 0:00:08]} Kxf3 {[%emt 0:00:03]} 65. Kb5 {[%emt 0:00:05]} Kf4 {[%emt 0:00:02]} 66. Kxa5 {[%emt 0:00:09]} Ke4 {[%emt 0:04:01] Weighted Error Value: White=0.07 (flawless) /Black=0.05 (flawless)   Mistake:       	White=1     	Black=1      Inaccurate:     	White=3     	Black=4      OK:         	White=26    	Black=21     Best:        	White=2     	---        Strong:       	White=1     	---} 1/2-1/2

[Event "Silves Open 2025"]
[Site "Fissul"]
[Date "2025.03.03"]
[Round "2.13"]
[White "Vasques, Antonio Pedro Freixi"]
[Black "Silva, Ana Ines Teixeira Da"]
[Result "1-0"]
[Annotator "TA"]
[ECO "C55"]
[WhiteElo "2246"]
[BlackElo "1901"]
[PlyCount "71"]
[EventDate "2025.03.03"]
[EventType "swiss"]
[EventCountry "POR"]
[SourceTitle "playchess.com"]
[Source "ChessBase"]
[SourceQuality "1"]
[TimeControl "5400+30"]

{[%evp 11,71,36,49,43,49,29,50,0,32,28,25,22,25,8,14,9,17,4,8,0,79,81,78,85,88,75,98,81,104,105,104,102,104,96,108,0,0,0,0,0,248,241,328,322,308,319,508,501,531,439,725,759,754,772,950,943,907,832,1045,1022,1497,1526]} 1. e4 {[%emt 1:31:00]} e5 {[%emt 1:31:00]} 2. Nf3 {[%emt 0:00:30]} Nc6 {[%emt 0:00:30]} 3. Bc4 {[%emt 0:00:30]} Nf6 {[%emt 0:00:30]} 4. d3 {[%emt 0:00:30]} h6 {[%emt 0:00:30]} 5. O-O {[%emt 0:00:30]} d6 {[%emt 0:00:30]} 6. c3 {[%emt 0:00:30]} g6 {[%emt 0:00:30] 6...g5 gains popularity.} 7. a4 {[%emt 0:00:30][%cal Ba2a4,Ba4a5][%mdl 32] C55: Two Knights: 4 d3, 4 d4 exd4 5 e5 and Max Lange Attack.} Bg7 {[%emt 0:00:30]} 8. a5 {[%emt 0:00:30]} a6 {[%emt 0:00:30]} 9. b4 {[%emt 0:00:30]} ({White should try} 9. h3 $14) 9... O-O {[%emt 0:00:30]} 10. Qb3 {[%emt 0:00:30]} Qe7 {[%emt 0:00:30]} 11. Re1 {[%emt 0:00:30]} Kh7 $146 {[%emt 0:00:30]} (11... Kh8 12. Nbd2 Nh5 13. Nf1 f5 14. Ne3 f4 15. Nd5 Qd8 16. d4 g5 17. dxe5 g4 {0-1 Choisy,M (2158)-Guichard,P (2303) FRA-chT Top 12 2018 (3)}) 12. Nbd2 {[%emt 0:00:30][%cal Bb1d2,Bd2f1,Bf1e3,Be3f5][%mdl 32]} Nh5 {[%emt 0:00:30]} 13. Nf1 {[%emt 0:00:30]} f5 {[%emt 0:00:30]} 14. exf5 {[%emt 0:00:30]} Bxf5 {[%emt 0:00:30]} 15. Ne3 {[%emt 0:00:30]} (15. Be3 {is more complex.} g5 16. h3 Bxh3 17. Nxg5+ hxg5 18. Qd1) 15... Nf4 {[%emt 0:00:30]} (15... Bd7 $11 {keeps the balance.}) 16. Nxf5 $16 {[%emt 0:00:30]} Rxf5 {[%emt 0:00:30]} 17. Bxf4 {[%emt 0:00:30]} Rxf4 {[%emt 0:00:30]} 18. Bd5 {[%emt 0:00:30]} Raf8 {[%emt 0:00:30]} 19. Re3 {[%emt 0:00:30]} Nd8 {[%emt 0:00:30]} 20. g3 {[%emt 0:00:30] Black is weak on the light squares} R4f6 {[%emt 0:00:30] ...c6 is the strong threat.} 21. d4 {[%emt 0:00:30][%cal Rd4e5] White is more active.} c6 {[%emt 0:00:30][%cal Bc7c6,Bc6d5,Bd5d4][%mdl 32]} 22. dxe5 {[%emt 0:00:30]} dxe5 {[%emt 0:00:30] [#]} 23. Nxe5 {[%emt 0:00:30]} (23. Rxe5 $2 Qc7 24. Re3 cxd5 25. Qxd5 Rc6 $19) ({Only move:} 23. Be4 $1 $16) 23... Rxf2 $1 $11 {[%emt 0:00:30]} (23... cxd5 $6 24. Nxg6 Qf7 25. Nxf8+ Bxf8 26. Qc2+ Kg8 27. Qe2 $14) 24. Rae1 $36 {[%emt 0:00:30][%mdl 2048] White fights for an advantage.} cxd5 {[%emt 0:00:30]} 25. Nf3 {[%emt 0:00:30] Against Qg5} Qd6 {[%emt 0:00:30]} (25... Qxe3 $11 26. Rxe3 R8xf3 (26... R2xf3 27. Rxf3 Rxf3 28. Qxd5 $11) 27. Rxf3 Rxf3 28. Qxd5 Rf8) 26. Kxf2 $18 {[%emt 0:00:30]} d4 {[%emt 0:00:30] [#]} 27. Rd3 {[%emt 0:00:30][%cal Be3d3,Bd3d2,Bd2d7][%mdl 32]} Nc6 {[%emt 0:00:30]} 28. Kg2 {[%emt 0:00:30]} Qf6 {[%emt 0:00:30]} (28... Rxf3 {might work better.} 29. Rxf3 (29. Kxf3 Ne5+ 30. Rxe5 Qf6+ 31. Kg2 Qxe5 $16) 29... dxc3) 29. cxd4 {[%emt 0:00:30] White is clearly winning.} (29. Nxd4 $2 {perishes.} Qf2+ 30. Kh3 Qxe1 $19) 29... Qf5 {[%emt 0:00:30]} 30. Rd2 {[%emt 0:00:30]} Nxd4 {[%emt 0:00:30]} (30... Qb5 $142 31. Ne5 Nxa5) 31. Nxd4 {[%emt 0:00:30]} Bxd4 {[%emt 0:00:30]} 32. Qd3 {[%emt 0:00:30]} Qd5+ {[%emt 0:00:30]} 33. Qe4 {[%emt 0:00:30]} Qxe4+ {[%emt 0:00:30]} 34. Rxe4 {[%emt 0:00:30]} Bg7 {[%emt 0:00:30]} 35. Rd7 {[%emt 0:00:30][%cal Oe4e7] aiming for Ree7!.} Kg8 {[%emt 0:00:30]} 36. Re6 {[%emt 0:00:30] Weighted Error Value: White=0.14 (very precise) /Black=0.75  Loses game:     	---       	Black=1      Mistake:       	White=2     	Black=3      Inaccurate:     	---       	Black=2      OK:         	White=8     	Black=8      Best:        	White=6     	Black=1      Strong:       	---       	Black=1} 1-0

[Event "Silves Open 2025"]
[Site "Fissul"]
[Date "2025.03.03"]
[Round "2.14"]
[White "Peixoto, Helio Ricardo Soutin"]
[Black "Rasti, Arvin"]
[Result "0-1"]
[Annotator "TA"]
[ECO "B10"]
[WhiteElo "1918"]
[BlackElo "2232"]
[PlyCount "50"]
[EventDate "2025.03.03"]
[EventType "swiss"]
[EventCountry "POR"]
[SourceTitle "playchess.com"]
[Source "ChessBase"]
[SourceQuality "1"]
[TimeControl "5400+30"]

{[%evp 15,50,-31,-6,-43,-43,-36,-45,-59,-48,-91,-88,-102,-63,-72,-39,-113,-62,-216,-224,-183,-187,-235,-232,-230,-222,-311,-323,-672,-656,-1312,-1065,-1920,-1857,-2078,-2007,-2604,-2540]} 1. e4 {[%emt 0:00:08]} c6 {[%emt 0:00:24]} 2. d3 {[%emt 0:00:10]} d5 {[%emt 0:00:27]} 3. Nd2 {[%emt 0:00:05]} e5 {[%emt 0:00:32]} 4. Ngf3 {[%emt 0:00:22][%cal Bg1f3,Bf3h4,Bh4f5][%mdl 32]} Bd6 {[%emt 0:00:10]} 5. g3 {[%emt 0:00:33]} Nf6 {[%emt 0:00:58]} 6. Bg2 {[%emt 0:00:13]} O-O {[%emt 0:01:32]} 7. O-O {[%emt 0:00:22]} Re8 {[%emt 0:02:51]} 8. Re1 {[%emt 0:01:10]} Nbd7 {[%emt 0:04:56]} 9. Nh4 {[%emt 0:06:22] B10: Caro-Kann: 2 d3 and 2 c4.} Nc5 {[%emt 0:03:22]} 10. Nf1 {[%emt 0:06:21]} Bg4 {[%emt 0:07:34]} 11. f3 {[%emt 0:00:49] Black is slightly better.} Bh5 $146 {[%emt 0:00:41]} (11... Be6 12. Ne3 g6 13. Qe2 Qb6 14. Kh1 Rad8 15. Qf1 Be7 {½-½ Pape,M (2205)-Wimmer,H (2211) GER-chT Seniors 16th 2007 (7.3)}) 12. g4 {[%emt 0:04:00]} Bg6 {[%emt 0:00:32] Black is more active.} 13. Nf5 {[%emt 0:03:35]} Bf8 {[%emt 0:02:13]} 14. N1g3 {[%emt 0:01:15]} Ne6 {[%emt 0:05:59]} 15. h4 {[%emt 0:03:19]} ({White should play} 15. exd5 $15 Nxd5 16. Rxe5) 15... h5 {[%emt 0:05:26]} (15... Bxf5 $17 16. exf5 Qb6+ 17. Kf1 Nf4 18. Bxf4 exf4) 16. Bg5 $2 {[%emt 0:09:23] [#] This costs White the game.} (16. g5 $1 $15) 16... Nxg5 $19 {[%emt 0:02:46]} 17. hxg5 {[%emt 0:00:10]} Nh7 {[%emt 0:00:16]} 18. gxh5 {[%emt 0:13:06]} (18. d4 {was necessary.}) 18... Bxf5 {[%emt 0:00:10]} 19. Nxf5 {[%emt 0:00:55][%cal Of3f4]} Qxg5 {[%emt 0:00:18]} 20. f4 {[%emt 0:01:54]} (20. Qc1 $142) 20... exf4 {[%emt 0:00:28]} ({Don't play} 20... Qxf4 21. Qf3 $19) 21. Kf2 $2 {[%emt 0:03:41] [#]} (21. Qf3) 21... Nf6 {[%emt 0:01:53] Black is clearly winning.} 22. Bf3 {[%emt 0:03:21]} dxe4 {[%emt 0:00:32]} 23. dxe4 {[%emt 0:24:44]} Bc5+ {[%emt 0:00:41]} 24. Nd4 {[%emt 0:01:40] White is weak on the dark squares} Qg3+ {[%emt 0:00:22]} 25. Ke2 {[%emt 0:00:51]} Nxe4 {[%emt 0:00:09] Weighted Error Value: White=2.01/Black=0.34  Mistake:       	White=5     	Black=1      Inaccurate:     	White=2     	Black=2      OK:         	White=1     	Black=4      Best:        	---       	Black=1} 0-1